bitfinex/quotes_SOLUSD_20250901
["timestamp","ask_amount","ask_price","bid_price","bid_amount"]
[1756707797100,2.86757298,199.14,199.11,13.59559401]
[1756707797285,2.86757298,199.12,199.08,18.76079299]
[1756707797499,2.86757298,199.12,199.1,0.14216157]
[1756707798186,26.0,199.18,199.1,0.14216157]
[1756707798380,2.86757298,199.12,199.11,13.59559401]
[1756707798699,2.86757298,199.12,199.11,53.57559401]
[1756707799103,5.02083647,199.17,199.11,53.57559401]
[1756707799285,2.86757298,199.12,199.11,53.57559401]
[1756707799490,2.86757298,199.12,199.11,13.59559401]
[1756707799691,2.86757298,199.12,199.11,53.57559401]
[1756707800098,5.02083647,199.17,199.11,193.57559401]
[1756707800302,2.86757298,199.12,199.11,193.57559401]
[1756707800596,7.8876533,199.2,199.12,0.14216157]
[1756707800905,2.86757298,199.15,199.12,0.14216157]
[1756707801500,2.86757298,199.14,199.12,0.14216157]
[1756707801688,2.86757298,199.14,199.12,5.16424022]
[1756707801881,2.86757298,199.13,199.12,18.75983423]
[1756707802192,5.02065845,199.18,199.12,18.75983423]
[1756707802783,2.86757298,199.13,199.12,18.75983423]
[1756707803307,5.02065845,199.18,199.12,13.73775558]
[1756707803505,2.86757298,199.13,199.12,13.73775558]
[1756707803802,5.02065845,199.18,199.14,13.59559401]
[1756707804382,5.02065845,199.18,199.15,39.96]
[1756707804784,2.86757298,199.16,199.15,39.96]
[1756707805206,5.02033234,199.19,199.15,39.96]
[1756707805384,2.86757298,199.16,199.15,39.96]
[1756707807612,2.86757298,199.16,199.15,53.55559401]
[1756707808686,5.02035888,199.19,199.15,53.55559401]
[1756707808913,2.86757298,199.16,199.15,53.55559401]
[1756707809297,5.02061892,199.18,199.15,53.55559401]
[1756707809610,2.86757298,199.16,199.15,53.55559401]
[1756707810620,2.86757298,199.16,199.15,13.59559401]
[1756707810797,2.86757298,199.16,199.15,53.55559401]
[1756707812626,2.86757298,199.16,199.15,39.96]
[1756707812925,2.86757298,199.16,199.11,13.73775558]
[1756707813109,5.02033234,199.19,199.13,13.59559401]
[1756707813308,5.02033234,199.19,199.14,39.94]
[1756707813494,5.02033234,199.19,199.12,13.59559401]
[1756707813692,5.02033234,199.19,199.13,39.94]
[1756707814310,2.86757298,199.14,199.13,53.53559401]
[1756707818241,2.86757298,199.14,199.13,58.55738678]
[1756707818424,2.86757298,199.14,199.13,53.53559401]
[1756707819317,5.02033234,199.19,199.13,53.53559401]
[1756707819591,2.86757298,199.14,199.13,53.53559401]
[1756707820024,2.86757298,199.14,199.13,13.59559401]
[1756707820222,2.86757298,199.14,199.13,53.53559401]
[1756707820834,5.02033234,199.19,199.13,53.53559401]
[1756707821009,2.86757298,199.14,199.13,53.53559401]
[1756707824143,2.86757298,199.14,199.13,53.51559401]
[1756707825611,7.88766179,199.2,199.14,13.59559401]
[1756707825820,7.88766179,199.2,199.15,39.92]
[1756707826025,7.88766179,199.2,199.16,39.92]
[1756707826261,7.88766179,199.2,199.17,39.92]
[1756707826945,2.86757298,199.18,199.17,39.92]
[1756707828527,7.88815737,199.18,199.17,39.92]
[1756707831236,2.86757298,199.18,199.17,39.92]
[1756707834052,1.83240012,199.18,199.17,39.92]
[1756707834250,6.85298451,199.18,199.12,18.61763362]
[1756707834454,1.83240012,199.13,199.12,18.75979519]
[1756707834660,5.02058439,199.18,199.12,58.65979519]
[1756707834971,1.83240012,199.13,199.12,58.65979519]
[1756707836759,1.83240012,199.13,199.12,18.75979519]
[1756707836958,1.83240012,199.13,199.12,58.65979519]
[1756707837540,1.83240012,199.13,199.12,53.63775558]
[1756707837742,1.83240012,199.13,199.12,13.73775558]
[1756707838061,26.0,199.22,199.12,58.65976354]
[1756707838268,1.83240012,199.14,199.12,58.65976354]
[1756707839051,1.83240012,199.14,199.13,53.49559401]
[1756707840572,1.83240012,199.14,199.13,13.59559401]
[1756707840869,1.83240012,199.14,199.13,53.49559401]
[1756707841374,1.83240012,199.14,199.13,58.51743903]
[1756707842072,5.02057136,199.19,199.14,13.59559401]
[1756707842248,1.83240012,199.17,199.16,13.59559401]
[1756707842455,1.83240012,199.17,199.16,53.49559401]
[1756707844869,1.83240012,199.19,199.17,0.14216157]
[1756707845050,1.83240012,199.19,199.18,53.61775558]
[1756707846872,0.06,199.2,199.19,13.59559401]
[1756707847070,1.89240012,199.2,199.19,13.59559401]
[1756707847649,0.06,199.2,199.19,18.75808792]
[1756707847973,1.89240012,199.2,199.19,18.75808792]
[1756707848177,0.06,199.2,199.19,18.75808792]
[1756707849354,0.06,199.2,199.19,20.76930092]
[1756707850378,0.06,199.2,199.19,60.64930092]
[1756707851075,0.06,199.2,199.19,20.76930092]
[1756707851378,0.06,199.2,199.19,60.62930092]
[1756707854961,0.06,199.2,199.19,200.62930092]
[1756707855780,0.06,199.2,199.19,160.76930092]
[1756707856083,0.06,199.2,199.19,200.62930092]
[1756707856656,0.06,199.2,199.19,160.76930092]
[1756707856901,0.06,199.2,199.19,200.60930092]
[1756707858182,0.06,199.2,199.19,155.74896858]
[1756707858394,0.06,199.2,199.19,55.44680701]
[1756707858556,0.06,199.2,199.19,58.45592635]
[1756707859187,0.06,199.2,199.19,58.59808792]
[1756707859686,0.06,199.2,199.19,53.57775558]
[1756707860991,0.06,199.2,199.19,58.59808792]
[1756707863812,0.06,199.2,199.19,61.4388332]
[1756707863973,0.06,199.2,199.19,21.6188332]
[1756707864172,0.06,199.2,199.19,61.4388332]
[1756707864372,0.06,199.2,199.19,64.2995782]
[1756707864874,0.01681285,199.2,199.19,64.2995782]
[1756707867102,0.01681285,199.2,199.19,21.61883292]
[1756707867392,0.01681285,199.2,199.19,64.2995782]
[1756707867770,0.01681285,199.2,199.19,24.4795782]
[1756707867966,0.01681285,199.2,199.19,64.2995782]
[1756707868798,0.01681285,199.2,199.19,164.4795782]
[1756707868981,0.01681285,199.2,199.19,204.2995782]
[1756707870797,0.01681285,199.2,199.19,164.4795782]
[1756707870971,0.01681285,199.2,199.19,204.2795782]
[1756707872684,0.01681285,199.2,199.19,164.4795782]
[1756707872999,0.01681285,199.2,199.19,201.41883292]
[1756707873298,0.01681285,199.2,199.19,204.2795782]
[1756707873498,0.01681285,199.2,199.19,207.14032348]
[1756707873806,0.06,199.22,199.21,42.59850086]
[1756707874000,0.06,199.22,199.21,81.36767789]
[1756707874589,0.06,199.22,199.21,91.8772729]
[1756707874778,0.01685149,199.22,199.21,93.70719521]
[1756707875188,0.01685149,199.22,199.21,91.8772729]
[1756707875389,0.01685149,199.22,199.21,93.70719521]
[1756707879121,0.01685149,199.22,199.21,93.68719521]
[1756707879416,0.01685149,199.22,199.21,26.0772729]
[1756707879715,0.01685149,199.22,199.21,207.68719521]
[1756707881619,5.01504513,199.4,199.26,0.14216157]
[1756707881817,1.82992231,199.33,199.29,0.14216157]
[1756707882113,1.82992231,199.32,199.31,13.59559401]
[1756707882612,5.01504513,199.4,199.32,0.14216157]
[1756707882819,1.82992231,199.37,199.34,13.59559401]
[1756707883123,1.82992231,199.37,199.36,13.59559401]
[1756707883997,2.85640873,199.37,199.36,13.59559401]
[1756707884193,2.85640873,199.38,199.35,0.14216157]
[1756707884396,2.85640873,199.39,199.37,13.59559401]
[1756707884616,2.85640873,199.39,199.38,53.35559401]
[1756707885810,2.85640873,199.39,199.36,13.59559401]
[1756707886012,5.01429072,199.43,199.37,39.76]
[1756707886333,12.53635543,199.42,199.37,39.76]
[1756707886492,12.53635543,199.42,199.33,0.14216157]
[1756707886697,12.53635543,199.42,199.35,13.59559401]
[1756707886897,12.53635543,199.42,199.36,39.76]
[1756707887098,2.85640873,199.37,199.36,39.76]
[1756707887708,7.87220849,199.37,199.36,39.76]
[1756707887894,7.87220849,199.37,199.33,13.59559401]
[1756707888095,5.01579976,199.37,199.34,39.76]
[1756707888409,5.01579976,199.37,199.35,39.76]
[1756707889218,2.85640873,199.36,199.35,39.76]
[1756707890543,7.87246009,199.36,199.35,39.76]
[1756707890852,7.87246009,199.36,199.32,13.59559401]
[1756707891028,2.85640873,199.33,199.25,5.0187628]
[1756707891354,2.85640873,199.29,199.26,53.33559401]
[1756707891531,2.85640873,199.3,199.27,0.14216157]
[1756707891725,2.85640873,199.3,199.29,13.59559401]
[1756707892347,2.85640873,199.3,199.29,53.33559401]
[1756707893352,2.85640873,199.3,199.29,13.59559401]
[1756707893528,2.85640873,199.3,199.29,53.33559401]
[1756707893726,2.85640873,199.3,199.29,39.74]
[1756707898153,5.01741056,199.31,199.29,39.74]
[1756707898459,2.85640873,199.3,199.29,39.74]
[1756707899241,5.01630298,199.35,199.29,39.74]
[1756707899439,2.85640873,199.3,199.29,39.74]
[1756707906182,5.01711934,199.32,199.29,39.74]
[1756707906357,5.01711934,199.32,199.26,163.6311023]
[1756707906358,2.85640873,199.3,199.26,5.017119]
[1756707906673,2.85640873,199.27,199.25,25.48]
[1756707906856,2.85640873,199.28,199.25,25.48]
[1756707907175,2.85640873,199.26,199.25,25.48]
[1756707907561,7.87497743,199.26,199.25,25.48]
[1756707908042,7.87497743,199.26,199.22,0.03]
[1756707908241,2.85640873,199.23,199.22,0.03]
[1756707908462,5.0185687,199.26,199.23,13.59559401]
[1756707908680,2.85640873,199.28,199.22,39.87216157]
[1756707908681,7.8754812,199.24,199.22,0.03]
[1756707908846,2.85640873,199.23,199.22,0.03]
[1756707910764,33.87573312,199.23,199.22,0.03]
[1756707911669,36.73214185,199.23,199.2,0.03]
[1756707911876,5.71281746,199.21,199.2,0.03]
[1756707912074,2.85640873,199.21,199.2,0.03]
[1756707914358,7.87623705,199.21,199.2,0.03]
[1756707916692,2.85640873,199.21,199.2,0.03]
[1756707917057,7.87623705,199.21,199.2,0.03]
[1756707917478,2.85640873,199.21,199.2,0.03]
[1756707918603,162.65951277,199.27,199.2,0.03]
[1756707918766,2.85640873,199.22,199.2,0.03]
[1756707918967,2.85640873,199.21,199.2,0.03]
[1756707919691,5.0178723,199.29,199.21,13.59559401]
[1756707919867,2.85640873,199.26,199.23,13.59559401]
[1756707921200,2.85640873,199.24,199.2,0.03]
[1756707921412,5.0186009,199.26,199.2,53.32559401]
[1756707921413,2.85640873,199.21,199.2,53.32559401]
[1756707921604,2.85640873,199.21,199.2,39.73]
[1756707921813,2.85640873,199.21,199.2,0.03]
[1756707924510,7.87623705,199.21,199.2,0.03]
[1756707924886,2.85640873,199.21,199.2,0.03]
[1756707926185,5.01977246,199.22,199.2,0.03]
[1756707926508,2.85640873,199.21,199.2,0.03]
[1756707928626,7.87623705,199.21,199.2,0.03]
[1756707928809,2.85640873,199.21,199.2,0.03]
[1756707929820,5.01911712,199.24,199.2,0.03]
[1756707930122,2.85640873,199.22,199.2,0.03]
[1756707930328,2.85640873,199.22,199.21,53.27559401]
[1756707931423,3.678422,199.22,199.21,53.27559401]
[1756707931613,3.678422,199.23,199.21,53.27559401]
[1756707932212,3.678422,199.23,199.22,13.59559401]
[1756707933417,3.678422,199.23,199.22,13.73775558]
[1756707933728,3.738422,199.26,199.23,0.14216157]
[1756707933904,3.738422,199.26,199.25,13.59559401]
[1756707934227,0.06,199.26,199.25,13.73775558]
[1756707934433,3.738422,199.26,199.25,13.73775558]
[1756707934611,0.06,199.26,199.25,13.73775558]
[1756707934807,0.06,199.26,199.25,18.75657615]
[1756707935309,0.06,199.26,199.25,22.43499815]
[1756707935735,0.06,199.26,199.25,17.41617758]
[1756707936041,3.738422,199.26,199.25,53.41775558]
[1756707936409,0.06,199.26,199.25,53.41775558]
[1756707937824,0.06,199.26,199.25,198.43657615]
[1756707938716,0.06,199.26,199.25,193.41775558]
[1756707939218,0.06,199.26,199.25,153.73775558]
[1756707939414,0.06,199.26,199.25,193.39775558]
[1756707939930,0.06,199.26,199.25,53.39775558]
[1756707944618,0.06,199.26,199.25,39.78216157]
[1756707945910,3.738422,199.26,199.23,13.59559401]
[1756707946114,3.678422,199.24,199.21,0.03]
[1756707946403,3.678422,199.22,199.21,0.03]
[1756707948031,8.69799834,199.22,199.21,0.03]
[1756707956841,51.99642034,199.22,199.21,0.03]
[1756707957026,51.99642034,199.22,199.2,0.03]
[1756707957355,33.356844,199.21,199.2,0.03]
[1756707957723,29.678422,199.21,199.2,0.03]
[1756707958648,69.298422,199.21,199.2,0.03]
[1756707958952,74.31825032,199.21,199.2,0.03]
[1756707960735,32.37667232,199.21,199.09,0.03]
[1756707961053,32.37667232,199.21,199.09,13.62559401]
[1756707961054,3.678422,199.11,199.09,13.62559401]
[1756707961350,3.678422,199.11,199.09,0.03]
[1756707961557,17.56939912,199.21,199.09,0.03]
[1756707961725,3.678422,199.12,199.09,0.03]
[1756707961928,53.215594,199.18,199.09,0.03]
[1756707961929,3.678422,199.1,199.09,0.03]
[1756707962228,53.215594,199.18,199.09,0.03]
[1756707962552,3.678422,199.1,199.09,0.03]
[1756707963055,8.7010237,199.1,199.09,0.03]
[1756707965459,12.3794457,199.1,199.09,0.03]
[1756707965660,8.7010237,199.1,199.09,0.03]
[1756707968441,17.19224243,199.13,199.09,0.03]
[1756707968442,5.02209722,199.12,199.09,0.03]
[1756707968642,5.02183325,199.14,199.09,0.03]
[1756707968851,3.678422,199.12,199.09,0.03]
[1756707969054,3.678422,199.11,199.09,0.03]
[1756707969440,8.70079086,199.11,199.09,0.03]
[1756707969663,3.678422,199.1,199.09,0.03]
[1756707971764,3.678422,199.12,199.09,0.03]
[1756707973054,3.678422,199.14,199.1,13.59559401]
[1756707973251,3.678422,199.14,199.11,0.14216157]
[1756707973450,132.5,199.17,199.11,0.14216157]
[1756707973651,3.678422,199.16,199.12,13.59559401]
[1756707974565,31.02063784,199.18,199.12,13.59559401]
[1756707974781,3.678422,199.16,199.12,153.59559401]
[1756707975352,3.678422,199.17,199.13,0.14216157]
[1756707976244,8.69929405,199.17,199.13,0.14216157]
[1756707976441,3.678422,199.17,199.13,0.14216157]
[1756707977157,3.678422,199.17,199.14,13.59559401]
[1756707978249,52.22929733,199.22,199.14,5.02154704]
[1756707978250,3.678422,199.18,199.14,5.02154704]
[1756707978474,3.678422,199.19,199.15,0.14216157]
[1756707979351,3.678422,199.19,199.16,13.59559401]
[1756707980078,3.678422,199.2,199.16,13.59559401]
[1756707980275,3.678422,199.21,199.17,0.14216157]
[1756707980478,0.06,199.22,199.17,0.14216157]
[1756707980688,3.738422,199.22,199.17,0.14216157]
[1756707981474,3.738422,199.22,199.17,5.16275783]
[1756707983584,0.06,199.21,199.17,5.16275783]
[1756707984378,3.738422,199.21,199.17,0.14216157]
[1756707984800,3.738422,199.21,199.18,13.59559401]
[1756707985364,3.738422,199.21,199.18,153.59559401]
[1756707985676,0.06,199.21,199.18,153.59559401]
[1756707985866,3.738422,199.21,199.18,13.59559401]
[1756707987591,0.06,199.21,199.18,13.59559401]
[1756707987822,3.738422,199.21,199.18,13.59559401]
[1756707989284,0.06,199.21,199.18,13.59559401]
[1756707989483,0.06,199.21,199.2,13.59559401]
[1756707989705,0.06,199.21,199.2,13.73775558]
[1756707989876,0.06,199.21,199.2,0.14216157]
[1756707990284,0.06,199.21,199.2,39.72216157]
[1756707991587,0.06,199.21,199.2,44.74224189]
[1756707991781,0.06,199.21,199.2,58.3378359]
[1756707991993,0.06,199.21,199.2,62.0162579]
[1756707993389,0.06,199.21,199.2,22.4362579]
[1756707993888,0.06,199.21,199.2,62.0162579]
[1756707994905,0.06,199.21,199.2,202.0162579]
[1756707995709,0.06,199.21,199.2,162.4362579]
[1756707996013,0.06,199.21,199.2,198.3178359]
[1756707996201,0.06,199.21,199.2,201.9962579]
[1756707996827,0.01842551,199.21,199.2,205.6746799]
[1756707996983,0.01842551,199.21,199.2,198.3178359]
[1756707997183,0.01842551,199.21,199.2,201.9962579]
[1756707998690,0.01842551,199.21,199.2,205.6746799]
[1756707999096,0.06,199.24,199.23,39.73775558]
[1756707999394,0.06,199.24,199.23,82.97617758]
[1756707999910,0.06,199.24,199.23,48.43276658]
[1756708000216,0.06,199.24,199.23,49.77366897]
[1756708000394,0.06,199.24,199.23,93.01209097]
[1756708001592,0.06,199.24,199.23,92.99209097]
[1756708002215,0.06,199.24,199.23,232.99209097]
[1756708004300,0.06,199.24,199.23,193.45209097]
[1756708004496,0.06,199.24,199.23,232.99209097]
[1756708007916,0.06,199.26,199.24,13.73775558]
[1756708008231,0.06,199.26,199.25,82.95617758]
[1756708008528,0.06,199.26,199.25,43.41617758]
[1756708008735,0.06,199.26,199.25,103.03075415]
[1756708009121,0.06,199.26,199.25,63.51075415]
[1756708009302,0.06,199.26,199.25,103.03075415]
[1756708009728,0.06,199.26,199.25,63.51075415]
[1756708009926,0.06,199.26,199.25,103.03075415]
[1756708011816,0.06,199.26,199.25,243.03075415]
[1756708012049,0.06,199.26,199.25,239.35233215]
[1756708012347,0.06,199.26,199.25,243.03075415]
[1756708016659,0.06,199.26,199.25,239.35233215]
[1756708016860,0.06,199.26,199.25,243.03075415]
[1756708017548,0.06,199.26,199.25,203.36859258]
[1756708017732,0.06,199.26,199.25,242.86859258]
[1756708018449,0.06,199.26,199.25,243.01075415]
[1756708019130,0.01693612,199.26,199.25,243.01075415]
[1756708019728,0.01693612,199.26,199.25,203.51075415]
[1756708019957,0.01693612,199.26,199.25,243.01075415]
[1756708020942,0.01693612,199.26,199.25,168.67135001]
[1756708021137,0.01693612,199.26,199.25,28.67135001]
[1756708021358,0.01693612,199.26,199.25,68.17135001]
[1756708021658,0.01693612,199.26,199.25,53.09559401]
[1756708021869,0.01693612,199.26,199.25,13.59559401]
[1756708022068,0.01693612,199.26,199.25,53.09559401]
[1756708022242,0.01693612,199.26,199.25,13.59559401]
[1756708022564,0.01693612,199.26,199.25,53.09559401]
[1756708025361,3.69535812,199.26,199.23,140.03]
[1756708025568,3.678422,199.24,199.23,0.03]
[1756708025960,3.678422,199.24,199.23,39.53]
[1756708026144,3.678422,199.24,199.23,0.03]
[1756708027150,8.69749447,199.24,199.23,0.03]
[1756708028646,3.678422,199.24,199.23,0.03]
[1756708029553,0.01693612,199.26,199.23,0.03]
[1756708029756,3.678422,199.24,199.23,0.03]
[1756708030484,0.01693612,199.26,199.23,13.62559401]
[1756708030651,0.01693612,199.26,199.24,39.5]
[1756708034571,0.01693612,199.26,199.24,179.5]
[1756708034957,3.678422,199.25,199.24,39.5]
[1756708035855,3.678422,199.25,199.23,0.03]
[1756708036046,5.03555166,199.26,199.24,39.48]
[1756708037179,3.678422,199.25,199.24,39.48]
[1756708038455,0.01693612,199.26,199.24,53.07559401]
[1756708038654,0.01693612,199.26,199.25,13.59559401]
[1756708038988,0.01693612,199.26,199.25,53.21775558]
[1756708040181,0.01693612,199.26,199.25,61.91499815]
[1756708041255,0.01693612,199.26,199.25,53.21775558]
[1756708042375,0.01693612,199.26,199.25,13.73775558]
[1756708042681,0.01693612,199.26,199.25,53.21775558]
[1756708043377,0.01693612,199.26,199.25,58.23657615]
[1756708043694,5.017104,199.34,199.25,61.91499815]
[1756708043978,3.678422,199.36,199.31,0.14216157]
[1756708044281,3.678422,199.36,199.33,13.59559401]
[1756708044477,3.678422,199.36,199.34,39.48]
[1756708045252,3.678422,199.35,199.34,53.07559401]
[1756708045751,3.678422,199.35,199.31,0.14216157]
[1756708046066,3.678422,199.34,199.33,13.59559401]
[1756708046978,5.01554819,199.38,199.33,13.59559401]
[1756708047176,3.678422,199.34,199.31,13.73775558]
[1756708047378,3.678422,199.33,199.32,39.46]
[1756708047560,3.678422,199.33,199.29,15.074998]
[1756708047879,17.55441868,199.38,199.3,53.05559401]
[1756708047880,3.678422,199.32,199.3,53.05559401]
[1756708048174,3.678422,199.32,199.31,39.46]
[1756708048759,8.69547999,199.32,199.31,39.46]
[1756708050578,8.69547999,199.32,199.28,0.14216157]
[1756708050780,3.678422,199.3,199.29,39.46]
[1756708052588,3.678422,199.31,199.3,13.59559401]
[1756708052880,3.678422,199.32,199.3,13.59559401]
[1756708053067,3.678422,199.32,199.31,39.44]
[1756708053867,29.678422,199.32,199.28,13.59559401]
[1756708054066,3.678422,199.29,199.26,13.59559401]
[1756708054280,3.678422,199.29,199.28,13.59559401]
[1756708055386,3.678422,199.3,199.28,13.59559401]
[1756708055581,3.678422,199.3,199.29,39.44]
[1756708055760,8.69598346,199.3,199.29,39.44]
[1756708056575,26.0,199.32,199.29,39.44]
[1756708056865,3.678422,199.34,199.3,13.59559401]
[1756708057079,3.678422,199.34,199.31,39.44]
[1756708057280,5.01579976,199.37,199.31,39.44]
[1756708057585,3.678422,199.33,199.31,39.44]
[1756708058511,137.51556234,199.38,199.32,13.59559401]
[1756708058669,3.678422,199.36,199.34,13.59559401]
[1756708058871,3.678422,199.36,199.35,39.44]
[1756708059123,2.62196194,199.39,199.35,53.03559401]
[1756708059389,3.678422,199.38,199.35,39.44]
[1756708060304,5.01535657,199.39,199.35,39.44]
[1756708060595,3.678422,199.38,199.35,39.44]
[1756708061199,3.678422,199.37,199.35,39.44]
[1756708061505,3.678422,199.36,199.35,53.03559401]
[1756708062004,3.678422,199.37,199.35,53.03559401]
[1756708062173,3.678422,199.37,199.35,193.03559401]
[1756708063272,3.678422,199.36,199.35,193.03559401]
[1756708063496,3.678422,199.36,199.35,53.03559401]
[1756708064397,3.678422,199.36,199.35,13.59559401]
[1756708064698,3.678422,199.36,199.35,53.01559401]
[1756708065100,5.01479364,199.41,199.35,53.01559401]
[1756708065296,3.678422,199.36,199.35,53.01559401]
[1756708066294,3.678422,199.37,199.35,53.01559401]
[1756708066682,3.678422,199.38,199.35,53.01559401]
[1756708067092,3.678422,199.37,199.35,53.01559401]
[1756708067278,3.678422,199.36,199.35,53.01559401]
[1756708068003,3.678422,199.37,199.35,53.01559401]
[1756708068497,3.678422,199.38,199.35,53.01559401]
[1756708068679,3.678422,199.37,199.35,53.01559401]
[1756708070290,3.678422,199.36,199.33,13.59559401]
[1756708070513,3.678422,199.35,199.34,53.01559401]
[1756708071410,3.678422,199.4,199.34,53.01559401]
[1756708071603,3.678422,199.36,199.34,53.01559401]
[1756708071798,26.0,199.38,199.34,53.01559401]
[1756708072006,3.678422,199.36,199.34,53.01559401]
[1756708072297,3.678422,199.36,199.35,39.4]
[1756708073219,8.69447336,199.36,199.35,39.4]
[1756708074134,3.678422,199.36,199.35,39.4]
[1756708074294,3.678422,199.36,199.34,13.59559401]
[1756708074494,3.678422,199.36,199.35,39.4]
[1756708076116,3.678422,199.37,199.35,39.4]
[1756708076326,3.678422,199.38,199.35,39.4]
[1756708077325,5.01479364,199.41,199.35,39.4]
[1756708077493,3.678422,199.38,199.36,13.59559401]
[1756708077694,3.678422,199.38,199.37,52.99559401]
[1756708078520,3.678422,199.38,199.37,13.59559401]
[1756708078719,8.69410962,199.38,199.33,13.73775558]
[1756708079036,3.678422,199.36,199.35,13.59559401]
[1756708079236,3.678422,199.36,199.35,52.99559401]
[1756708080935,5.01568762,199.38,199.36,13.59559401]
[1756708081113,5.01568762,199.38,199.37,39.4]
[1756708081314,5.01568762,199.38,199.33,13.73775558]
[1756708081537,5.01568762,199.38,199.35,13.59559401]
[1756708081715,5.01568762,199.38,199.36,39.38]
[1756708082232,3.678422,199.37,199.36,39.38]
[1756708083332,8.69422176,199.37,199.36,39.38]
[1756708083533,3.678422,199.37,199.36,39.38]
[1756708084719,8.69422176,199.37,199.36,39.38]
[1756708086743,3.678422,199.37,199.36,39.38]
[1756708087737,0.06,199.38,199.37,13.59559401]
[1756708088219,3.738422,199.38,199.37,13.59559401]
[1756708088639,8.75397019,199.38,199.37,13.59559401]
[1756708089186,8.75397019,199.38,199.33,18.75456043]
[1756708089457,8.75397019,199.38,199.37,13.59559401]
[1756708089627,8.75397019,199.38,199.37,52.97559401]
[1756708090659,3.738422,199.38,199.37,52.97559401]
[1756708092155,3.738422,199.38,199.37,39.38]
[1756708092564,8.75397019,199.38,199.37,39.38]
[1756708093248,8.75397019,199.38,199.37,39.36]
[1756708093780,8.75397019,199.38,199.34,13.59559401]
[1756708093953,3.678422,199.35,199.31,13.59559401]
[1756708094149,3.678422,199.34,199.33,13.59559401]
[1756708094368,3.678422,199.34,199.33,52.95559401]
[1756708094878,3.678422,199.34,199.33,39.36]
[1756708095175,3.678422,199.34,199.32,39.36]
[1756708095372,3.678422,199.33,199.32,39.36]
[1756708095574,3.678422,199.33,199.26,5.046427]
[1756708095875,3.678422,199.29,199.27,52.95559401]
[1756708096163,3.678422,199.29,199.28,52.95559401]
[1756708096469,3.678422,199.3,199.29,13.59559401]
[1756708096707,3.678422,199.3,199.29,52.95559401]
[1756708097463,3.678422,199.32,199.29,52.95559401]
[1756708097668,5.01579976,199.37,199.3,0.14216157]
[1756708097847,5.106427,199.38,199.32,13.59559401]
[1756708097848,3.678422,199.35,199.32,13.59559401]
[1756708098044,3.678422,199.35,199.34,13.59559401]
[1756708100284,8.69472498,199.35,199.3,39.36]
[1756708100507,3.678422,199.31,199.3,52.95559401]
[1756708100699,3.678422,199.32,199.3,52.95559401]
[1756708101614,3.678422,199.33,199.31,13.59559401]
[1756708101795,3.678422,199.33,199.32,39.36]
[1756708102685,5.01630298,199.35,199.32,39.36]
[1756708102875,3.678422,199.33,199.32,39.36]
[1756708103975,3.678422,199.33,199.3,0.03]
[1756708104198,3.678422,199.32,199.31,52.95559401]
[1756708105007,26.0,199.34,199.31,52.95559401]
[1756708105193,3.678422,199.33,199.31,52.95559401]
[1756708106010,3.678422,199.33,199.32,13.59559401]
[1756708106208,29.678422,199.34,199.32,13.59559401]
[1756708106413,0.06,199.38,199.34,13.59559401]
[1756708106577,0.06,199.38,199.36,13.59559401]
[1756708106909,3.678422,199.37,199.34,0.14216157]
[1756708107422,3.678422,199.37,199.36,13.59559401]
[1756708108317,3.678422,199.37,199.35,39.34]
[1756708108518,3.678422,199.36,199.35,39.34]
[1756708108722,3.678422,199.36,199.34,39.34]
[1756708109015,3.678422,199.35,199.33,39.34]
[1756708109220,3.678422,199.34,199.33,39.34]
[1756708112118,8.69512989,199.34,199.3,153.62559401]
[1756708112309,3.678422,199.33,199.32,13.59559401]
[1756708112696,3.678422,199.33,199.31,39.34]
[1756708113016,3.678422,199.32,199.31,39.34]
[1756708113196,5.01670789,199.34,199.31,39.34]
[1756708113396,3.678422,199.32,199.31,39.34]
[1756708114722,8.69547999,199.32,199.31,39.34]
[1756708115403,8.69547999,199.32,199.3,39.37]
[1756708115615,12.53982646,199.37,199.3,39.37]
[1756708115616,5.01605136,199.36,199.3,39.37]
[1756708115816,3.678422,199.31,199.3,39.37]
[1756708116638,3.678422,199.31,199.3,0.03]
[1756708116807,3.678422,199.31,199.3,39.35]